[Event "2nd Namma Bengaluru Open-A 2025"]
[Site "Bengaluru"]
[Date "2025.04.11"]
[Round "3.7"]
[White "Apoorv Kamble"]
[Black "Sanikidze, Tornike"]
[Result "0-1"]
[Annotator "ChessBase"]
[ECO "C54"]
[WhiteElo "2264"]
[BlackElo "2448"]
[PlyCount "232"]
[EventDate "2025.04.10"]
[EventType "swiss"]
[EventCountry "IND"]
[SourceTitle "playchess.com"]
[Source "ChessBase"]
[SourceQuality "1"]
[TimeControl "5400+30"]

1. e4 {[%emt 0:00:24]} e5 {[%emt 0:00:39]} 2. Nf3 {[%emt 0:00:06]} Nc6 {[%emt 0:00:11]} 3. Bc4 {[%emt 0:00:05]} Bc5 {[%emt 0:00:16]} 4. c3 {[%emt 0:00:06]} Nf6 {[%emt 0:00:07]} 5. d3 {[%emt 0:00:08]} a5 {[%emt 0:00:07]} 6. Nbd2 {[%emt 0:01:47]} O-O {[%emt 0:02:03]} 7. a4 {[%emt 0:03:50]} d6 {[%emt 0:03:20]} 8. O-O {[%emt 0:09:43]} Ba7 {[%emt 0:03:51]} 9. h3 {[%emt 0:01:45]} Ne7 {[%emt 0:02:25]} 10. Re1 {[%emt 0:01:50]} Ng6 {[%emt 0:08:15]} 11. Nf1 {[%emt 0:01:57]} c6 {[%emt 0:02:41]} 12. Bb3 {[%emt 0:05:23]} h6 {[%emt 0:06:31]} 13. Ng3 {[%emt 0:01:13]} Nh7 {[%emt 0:16:02]} 14. Be3 {[%emt 0:37:06]} Ng5 {[%emt 0:11:01]} 15. d4 {[%emt 0:05:39]} Qf6 {[%emt 0:03:48]} 16. Nxg5 {[%emt 0:01:31]} hxg5 {[%emt 0:01:38]} 17. Nh5 {[%emt 0:01:59]} Qe7 {[%emt 0:00:12]} 18. dxe5 {[%emt 0:00:04]} dxe5 {[%emt 0:04:31]} 19. Bxa7 {[%emt 0:04:02]} Rxa7 {[%emt 0:00:12]} 20. Qf3 {[%emt 0:03:05]} Nf4 {[%emt 0:03:32]} 21. Nxf4 {[%emt 0:01:54]} gxf4 {[%emt 0:00:34]} 22. Rad1 {[%emt 0:00:12]} g6 {[%emt 0:29:34]} 23. Rd3 {[%emt 0:09:11]} Kg7 {[%emt 0:00:00]} 24. Red1 {[%emt 0:00:59]} Rh8 {[%emt 0:00:00]} 25. R1d2 {[%emt 0:02:47]} Qg5 {[%emt 0:00:00]} 26. Kf1 {[%emt 0:00:04]} b5 {[%emt 0:00:00]} 27. Rd6 {[%emt 0:01:04]} Rb7 {[%emt 0:00:00]} 28. axb5 {[%emt 0:03:42]} Rxb5 {[%emt 0:00:05]} 29. Bc4 {[%emt 0:00:10]} Rc5 {[%emt 0:00:25]} 30. Ba2 {[%emt 0:00:01]} a4 {[%emt 0:01:47]} 31. Ke1 {[%emt 0:00:34]} Rf8 {[%emt 0:01:25]} 32. Kf1 {[%emt 0:00:41]} Ba6+ {[%emt 0:00:01]} 33. Kg1 {[%emt 0:00:23]} Bc8 {[%emt 0:00:22]} 34. Kf1 {[%emt 0:00:09]} Qe7 {[%emt 0:00:47]} 35. Qd1 {[%emt 0:00:52]} a3 {[%emt 0:00:42]} 36. b4 {[%emt 0:00:25]} Rxc3 {[%emt 0:00:48]} 37. Qa1 {[%emt 0:00:01]} Rc2 {[%emt 0:00:21]} 38. Rxg6+ {[%emt 0:01:15]} Kxg6 {[%emt 0:00:24]} 39. Rxc2 {[%emt 0:00:01]} Qxb4 {[%emt 0:00:43]} 40. Rxc6+ {[%emt 0:02:07]} f6 {[%emt 0:00:01]} 41. Qxe5 {[%emt 0:00:10]} Qd2 {[%emt 0:00:23]} 42. Qd5 {[%emt 0:01:46]} Qxd5 {[%emt 0:00:47]} 43. exd5 {[%emt 0:00:12]} Bf5 {[%emt 0:00:48]} 44. Rc3 {[%emt 0:00:42]} Ra8 {[%emt 0:00:01]} 45. Kg1 {[%emt 0:01:12]} Be4 {[%emt 0:00:26]} 46. Kh2 {[%emt 0:00:21]} Ra4 {[%emt 0:00:50]} 47. f3 {[%emt 0:00:44]} Bf5 {[%emt 0:00:02]} 48. g4 {[%emt 0:00:27]} fxg3+ {[%emt 0:00:31]} 49. Kxg3 {[%emt 0:00:11]} Kg5 {[%emt 0:01:05]} 50. Re3 {[%emt 0:00:26]} Bc2 {[%emt 0:00:37]} 51. Rc3 {[%emt 0:00:45]} Bg6 {[%emt 0:00:01]} 52. d6 {[%emt 0:00:39]} f5 {[%emt 0:00:23]} 53. f4+ {[%emt 0:00:33]} Kf6 {[%emt 0:01:45]} 54. Rd3 {[%emt 0:00:22]} Ra8 {[%emt 0:00:00]} 55. d7 {[%emt 0:00:37]} Ke7 {[%emt 0:00:00]} 56. Bd5 {[%emt 0:00:36]} Rd8 {[%emt 0:00:00]} 57. Bc6 {[%emt 0:00:18]} a2 {[%emt 0:00:00]} 58. Ra3 {[%emt 0:00:00]} Bf7 {[%emt 0:00:00]} 59. Kh4 {[%emt 0:01:10]} Rh8+ {[%emt 0:00:13]} 60. Kg3 {[%emt 0:00:26]} Rb8 {[%emt 0:02:03]} 61. Kh4 {[%emt 0:00:24]} Rh8+ {[%emt 0:00:31]} 62. Kg3 {[%emt 0:00:03]} Bc4 {[%emt 0:00:13]} 63. Re3+ {[%emt 0:00:36]} Kf7 {[%emt 0:00:09]} 64. Ra3 {[%emt 0:00:25]} Rb8 {[%emt 0:00:25]} 65. Kh4 {[%emt 0:00:59]} Kf6 {[%emt 0:00:56]} 66. Kg3 {[%emt 0:00:31]} Ke7 {[%emt 0:01:09]} 67. Kh4 {[%emt 0:00:38]} Kd6 {[%emt 0:00:15]} 68. Ra4 {[%emt 0:00:23]} Be6 {[%emt 0:01:03]} 69. Ra6 {[%emt 0:00:17]} Ke7 {[%emt 0:00:27]} 70. Kg5 {[%emt 0:00:37]} Rg8+ {[%emt 0:00:24]} 71. Kh4 {[%emt 0:00:02]} Rh8+ {[%emt 0:00:23]} 72. Kg5 {[%emt 0:00:41]} Rg8+ {[%emt 0:00:39]} 73. Kh4 {[%emt 0:00:05]} Rg1 {[%emt 0:00:36]} 74. Ra8 {[%emt 0:00:30]} Rd1 {[%emt 0:00:01]} 75. Re8+ {[%emt 0:00:41]} Kf6 {[%emt 0:00:48]} 76. Rf8+ {[%emt 0:01:05]} Kg6 {[%emt 0:00:34]} 77. Ra8 {[%emt 0:00:26]} Rd4 {[%emt 0:00:39]} 78. Ra6 {[%emt 0:00:39]} Rxf4+ {[%emt 0:00:23]} 79. Kg3 {[%emt 0:00:01]} Rd4 {[%emt 0:00:00]} 80. Bd5 {[%emt 0:00:55]} f4+ {[%emt 0:00:53]} 81. Kf3 {[%emt 0:00:35]} a1=Q {[%emt 0:00:35]} 82. Be4+ {[%emt 0:00:32]} Rxe4 {[%emt 0:00:33]} 83. Rxa1 {[%emt 0:00:03]} Rd4 {[%emt 0:00:11]} 84. d8=Q {[%emt 0:01:30]} Rxd8 {[%emt 0:00:05]} 85. Kxf4 {[%emt 0:00:00]} Bxh3 {[%emt 0:00:22]} 86. Ra6+ {[%emt 0:00:00]} Kf7 {[%emt 0:00:07]} 87. Ke5 {[%emt 0:00:00]} Re8+ {[%emt 0:00:08]} 88. Kf4 {[%emt 0:00:00]} Be6 {[%emt 0:00:05]} 89. Ra5 {[%emt 0:00:00]} Rb8 {[%emt 0:00:32]} 90. Ke5 {[%emt 0:00:04]} Rb7 {[%emt 0:00:15]} 91. Rc5 {[%emt 0:00:10]} Ke7 {[%emt 0:00:51]} 92. Ra5 {[%emt 0:00:04]} Rb1 {[%emt 0:00:20]} 93. Ra7+ {[%emt 0:00:07]} Bd7 {[%emt 0:00:00]} 94. Kd5 {[%emt 0:00:11]} Rb5+ {[%emt 0:00:14]} 95. Kc4 {[%emt 0:00:04]} Rg5 {[%emt 0:00:20]} 96. Kd4 {[%emt 0:00:16]} Kd6 {[%emt 0:00:02]} 97. Ra6+ {[%emt 0:00:17]} Bc6 {[%emt 0:00:01]} 98. Ke3 {[%emt 0:00:02]} Rg4 {[%emt 0:01:00]} 99. Kf2 {[%emt 0:00:21]} Kc5 {[%emt 0:00:55]} 100. Ra5+ {[%emt 0:00:09]} Kd4 {[%emt 0:00:04]} 101. Ra3 {[%emt 0:00:26]} Rg2+ {[%emt 0:00:15]} 102. Kf1 {[%emt 0:00:01]} Rb2 {[%emt 0:00:41]} 103. Rg3 {[%emt 0:00:29]} Be4 {[%emt 0:00:53]} 104. Ra3 {[%emt 0:00:34]} Bd3+ {[%emt 0:01:07]} 105. Kg1 {[%emt 0:00:04]} Ke3 {[%emt 0:03:40]} 106. Rc3 {[%emt 0:00:40]} Rd2 {[%emt 0:00:00]} 107. Rc8 {[%emt 0:01:00]} Bf5 {[%emt 0:00:00]} 108. Rc3+ {[%emt 0:00:53]} Kf4 {[%emt 0:00:00]} 109. Rc4+ {[%emt 0:03:09]} Kg3 {[%emt 0:00:13]} 110. Rc1 {[%emt 0:00:36]} Bd3 {[%emt 0:01:08]} 111. Re1 {[%emt 0:00:40]} Be4 {[%emt 0:00:45]} 112. Rc1 {[%emt 0:00:28]} Bg2 {[%emt 0:00:40]} 113. Rb1 {[%emt 0:03:14]} Bf3 {[%emt 0:00:39]} 114. Rf1 {[%emt 0:00:30]} Rg2+ {[%emt 0:00:05]} 115. Kh1 {[%emt 0:00:01]} Rh2+ {[%emt 0:00:07]} 116. Kg1 {[%emt 0:00:02]} Rh1# {[%emt 0:00:04]} 0-1

[Event "2nd Namma Bengaluru Open-A 2025"]
[Site "Bengaluru"]
[Date "2025.04.11"]
[Round "3.8"]
[White "Nitish Belurkar"]
[Black "Mahitosh Dey"]
[Result "1-0"]
[Annotator "ChessBase"]
[ECO "C84"]
[WhiteElo "2441"]
[BlackElo "2226"]
[PlyCount "53"]
[EventDate "2025.04.10"]
[EventType "swiss"]
[EventCountry "IND"]
[SourceTitle "playchess.com"]
[Source "ChessBase"]
[SourceQuality "1"]
[TimeControl "5400+30"]

1. e4 {[%emt 1:31:00]} e5 {[%emt 0:06:37]} 2. Nf3 {[%emt 0:00:00]} Nc6 {[%emt 0:00:11]} 3. Bb5 {[%emt 0:00:00]} a6 {[%emt 0:00:06]} 4. Ba4 {[%emt 0:00:00]} Nf6 {[%emt 0:00:05]} 5. O-O {[%emt 0:00:00]} b5 {[%emt 0:00:05]} 6. Bb3 {[%emt 0:00:00]} Bb7 {[%emt 0:00:04]} 7. Nc3 {[%emt 0:00:00]} Be7 {[%emt 0:06:59]} 8. d3 {[%emt 0:00:00]} O-O {[%emt 0:03:29]} 9. a3 {[%emt 0:00:00]} d6 {[%emt 0:00:39]} 10. Re1 {[%emt 0:00:00]} h6 {[%emt 0:00:36]} 11. Nd5 {[%emt 0:00:00]} Na5 {[%emt 0:00:54]} 12. Ba2 {[%emt 0:00:00]} c5 {[%emt 0:00:24]} 13. Nxe7+ {[%emt 0:00:00]} Qxe7 {[%emt 0:00:10]} 14. Nh4 {[%emt 0:00:00]} Qd7 {[%emt 0:03:41]} 15. Bxh6 {[%emt 0:00:00]} gxh6 {[%emt 0:10:06]} 16. Qd2 {[%emt 0:00:00]} Kh7 {[%emt 0:03:09]} 17. Nf5 {[%emt 0:00:00]} Qxf5 {[%emt 0:00:49]} 18. exf5 {[%emt 0:00:00]} Nc6 {[%emt 0:00:32]} 19. c3 {[%emt 0:00:00]} Ne7 {[%emt 0:00:18]} 20. f4 {[%emt 0:00:00]} e4 {[%emt 0:00:39]} 21. dxe4 {[%emt 0:00:00]} Nxe4 {[%emt 0:00:09]} 22. Qc2 {[%emt 0:00:00]} d5 {[%emt 0:00:05]} 23. Bxd5 {[%emt 0:00:00]} Bxd5 {[%emt 0:01:19]} 24. Rxe4 {[%emt 0:00:00]} Bxe4 {[%emt 0:00:04]} 25. Qxe4 {[%emt 0:00:00]} Rfe8 {[%emt 0:00:15]} 26. Re1 {[%emt 0:00:00]} f6 {[%emt 0:00:18]} 27. Qb7 {[%emt 0:00:00]} 1-0

[Event "2nd Namma Bengaluru Open-A 2025"]
[Site "Bengaluru"]
[Date "2025.04.11"]
[Round "3.9"]
[White "Jani Kushal R"]
[Black "Vaz, Ethan"]
[Result "0-1"]
[Annotator "ChessBase"]
[ECO "B90"]
[WhiteElo "2248"]
[BlackElo "2430"]
[PlyCount "156"]
[EventDate "2025.04.10"]
[EventType "swiss"]
[EventCountry "IND"]
[SourceTitle "playchess.com"]
[Source "ChessBase"]
[SourceQuality "1"]
[TimeControl "5400+30"]

1. e4 {[%emt 0:04:21]} c5 {[%emt 0:00:19]} 2. Nf3 {[%emt 0:00:12]} d6 {[%emt 0:00:09]} 3. d4 {[%emt 0:00:09]} cxd4 {[%emt 0:00:05]} 4. Nxd4 {[%emt 0:00:13]} Nf6 {[%emt 0:00:05]} 5. Nc3 {[%emt 0:00:18]} a6 {[%emt 0:00:01]} 6. Be3 {[%emt 0:00:06]} e5 {[%emt 0:00:14]} 7. Nf3 {[%emt 0:00:08]} Be7 {[%emt 0:00:36]} 8. Bc4 {[%emt 0:00:07]} O-O {[%emt 0:07:19]} 9. O-O {[%emt 0:00:06]} Nc6 {[%emt 0:01:12]} 10. Re1 {[%emt 0:00:19]} Be6 {[%emt 0:03:37]} 11. Bf1 {[%emt 0:00:27]} d5 {[%emt 0:15:36]} 12. exd5 {[%emt 0:00:10]} Nxd5 {[%emt 0:00:14]} 13. Nxd5 Qxd5 {[%emt 0:14:42]} 14. Qxd5 {[%emt 0:01:44]} Bxd5 {[%emt 0:00:10]} 15. c3 {[%emt 0:09:50]} f6 {[%emt 0:12:56]} 16. Red1 {[%emt 0:07:29]} Be6 {[%emt 0:00:37]} 17. Nd2 {[%emt 0:01:22]} Rfd8 {[%emt 0:06:24]} 18. Bb6 {[%emt 0:02:35]} Rd7 {[%emt 0:00:23]} 19. Nb3 {[%emt 0:10:17]} Rxd1 {[%emt 0:03:00]} 20. Rxd1 {[%emt 0:01:51]} Bd8 {[%emt 0:05:44]} 21. Be3 {[%emt 0:02:10]} Be7 {[%emt 0:00:35]} 22. Bb6 {[%emt 0:02:29]} Bd8 {[%emt 0:01:29]} 23. Be3 {[%emt 0:11:23]} Be7 {[%emt 0:00:02]} 24. Bb6 {[%emt 0:00:25]} Rc8 {[%emt 0:01:24]} 25. c4 {[%emt 0:06:09]} Nb8 {[%emt 0:01:22]} 26. Nd2 {[%emt 0:04:30]} Nd7 {[%emt 0:01:02]} 27. Ba5 {[%emt 0:01:42]} b6 {[%emt 0:02:11]} 28. Bc3 {[%emt 0:00:27]} Nc5 {[%emt 0:00:23]} 29. b3 {[%emt 0:02:09]} Rd8 {[%emt 0:01:10]} 30. Be2 {[%emt 0:01:08]} Kf7 {[%emt 0:05:40]} 31. Nf1 {[%emt 0:02:04]} Rxd1 {[%emt 0:00:16]} 32. Bxd1 {[%emt 0:00:02]} Ne4 {[%emt 0:09:09]} 33. Be1 {[%emt 0:00:43]} Bc5 {[%emt 0:01:34]} 34. Bf3 {[%emt 0:01:48]} Nd6 {[%emt 0:00:46]} 35. Bc3 {[%emt 0:02:58]} a5 {[%emt 0:03:38]} 36. Ne3 {[%emt 0:04:23]} Nf5 37. Nc2 {[%emt 0:04:42]} Nd4 {[%emt 0:02:15]} 38. Bxd4 {[%emt 0:01:32]} exd4 {[%emt 0:00:51]} 39. Be4 {[%emt 0:00:07]} f5 {[%emt 0:00:20]} 40. Bd3 {[%emt 0:00:05]} Kf6 {[%emt 0:00:50]} 41. Kf1 {[%emt 0:03:01]} Ke5 {[%emt 0:00:48]} 42. Ke2 {[%emt 0:00:03]} h6 {[%emt 0:00:52]} 43. Ne1 {[%emt 0:01:52]} g5 {[%emt 0:00:16]} 44. Bc2 {[%emt 0:01:26]} Kf6 {[%emt 0:00:50]} 45. g3 {[%emt 0:01:42]} Bd7 {[%emt 0:00:37]} 46. Nd3 {[%emt 0:04:55]} Ba3 {[%emt 0:00:33]} 47. Ne1 {[%emt 0:01:52]} Bc6 {[%emt 0:00:19]} 48. Bd3 {[%emt 0:00:51]} Bc5 {[%emt 0:00:22]} 49. Nc2 Ke5 {[%emt 0:00:25]} 50. Ne1 {[%emt 0:02:46]} h5 {[%emt 0:00:50]} 51. Nf3+ {[%emt 0:00:28]} Kf6 {[%emt 0:00:03]} 52. h4 {[%emt 0:01:56]} g4 {[%emt 0:00:12]} 53. Ng5 {[%emt 0:00:54]} Bd6 {[%emt 0:00:48]} 54. Nh7+ {[%emt 0:01:10]} Kg6 {[%emt 0:00:15]} 55. Ng5 {[%emt 0:00:05]} Bd7 {[%emt 0:00:40]} 56. a4 {[%emt 0:01:24]} Kf6 {[%emt 0:00:36]} 57. Nh7+ {[%emt 0:00:22]} Kg7 {[%emt 0:00:52]} 58. Ng5 {[%emt 0:00:14]} Be5 {[%emt 0:00:36]} 59. f4 {[%emt 0:00:31]} gxf3+ {[%emt 0:00:12]} 60. Kxf3 {[%emt 0:00:15]} Kf6 {[%emt 0:00:46]} 61. Nh7+ {[%emt 0:01:30]} Ke7 {[%emt 0:00:11]} 62. Ng5 {[%emt 0:00:35]} Bc6+ {[%emt 0:00:26]} 63. Kf2 {[%emt 0:00:02]} f4 {[%emt 0:00:10]} 64. gxf4 {[%emt 0:00:22]} Bxf4 {[%emt 0:00:01]} 65. Bg6 {[%emt 0:00:54]} Bxg5 {[%emt 0:02:13]} 66. hxg5 {[%emt 0:00:06]} h4 {[%emt 0:00:03]} 67. Bd3 {[%emt 0:00:56]} Ke6 {[%emt 0:00:39]} 68. Kg1 {[%emt 0:00:33]} Ke5 {[%emt 0:00:14]} 69. Kh2 {[%emt 0:00:44]} Bd7 {[%emt 0:00:23]} 70. Bf1 {[%emt 0:00:46]} Bf5 {[%emt 0:00:24]} 71. Kg1 {[%emt 0:00:30]} d3 {[%emt 0:00:21]} 72. Kf2 {[%emt 0:00:16]} Kd4 {[%emt 0:00:04]} 73. Kf3 {[%emt 0:00:45]} d2 {[%emt 0:00:22]} 74. Be2 {[%emt 0:00:20]} Bc2 {[%emt 0:00:27]} 75. Kf4 {[%emt 0:00:22]} d1=Q {[%emt 0:00:32]} 76. Bxd1 {[%emt 0:00:01]} Bxd1 {[%emt 0:00:01]} 77. g6 {[%emt 0:00:09]} Bxb3 {[%emt 0:00:13]} 78. g7 {[%emt 0:00:01]} Bxc4 {[%emt 0:00:06]} 0-1

[Event "2nd Namma Bengaluru Open-A 2025"]
[Site "Bengaluru"]
[Date "2025.04.11"]
[Round "3.10"]
[White "Mehar, Chinna Reddy C.H."]
[Black "Roy Chowdhury, Saptarshi"]
[Result "1/2-1/2"]
[Annotator "ChessBase"]
[ECO "A47"]
[WhiteElo "2418"]
[BlackElo "2224"]
[PlyCount "66"]
[EventDate "2025.04.10"]
[EventType "swiss"]
[EventCountry "IND"]
[SourceTitle "playchess.com"]
[Source "ChessBase"]
[SourceQuality "1"]
[TimeControl "5400+30"]

1. d4 {[%emt 0:00:33]} Nf6 {[%emt 0:01:15]} 2. Nf3 {[%emt 0:00:10]} e6 {[%emt 0:00:05]} 3. Bf4 {[%emt 0:00:20]} b6 {[%emt 0:00:50]} 4. e3 {[%emt 0:00:13]} Bb7 {[%emt 0:00:11]} 5. Bd3 {[%emt 0:00:40]} d6 {[%emt 0:03:01]} 6. Nbd2 {[%emt 0:01:06]} Nh5 {[%emt 0:04:07]} 7. Bg5 {[%emt 0:06:59]} Be7 {[%emt 0:01:27]} 8. Bxe7 {[%emt 0:00:11]} Qxe7 {[%emt 0:00:06]} 9. Qe2 {[%emt 0:01:42]} Nd7 {[%emt 0:03:06]} 10. h3 {[%emt 0:02:10]} a6 {[%emt 0:03:10]} 11. Be4 {[%emt 0:03:59]} Bxe4 {[%emt 0:02:01]} 12. Nxe4 {[%emt 0:00:14]} Nhf6 {[%emt 0:00:37]} 13. Ng3 d5 {[%emt 0:00:30]} 14. O-O O-O {[%emt 0:00:30]} 15. c4 dxc4 {[%emt 0:00:30]} 16. Qxc4 c5 {[%emt 0:00:30]} 17. Qe2 b5 {[%emt 0:00:30]} 18. dxc5 Nxc5 {[%emt 0:00:30]} 19. Rac1 Rac8 {[%emt 0:00:30]} 20. Rc2 Qb7 {[%emt 0:00:30]} 21. Rfc1 Ncd7 {[%emt 0:00:30]} 22. Qd2 h6 {[%emt 0:00:30]} 23. b3 Rfe8 {[%emt 0:00:30]} 24. Kh2 Nb6 {[%emt 0:00:30]} 25. Qd4 Nbd7 {[%emt 0:00:30]} 26. Qd6 Rxc2 {[%emt 0:00:30]} 27. Rxc2 Rc8 {[%emt 0:00:30]} 28. Rxc8+ Qxc8 {[%emt 0:00:30]} 29. Nd4 Ne8 {[%emt 0:00:30]} 30. Qe7 Nef6 {[%emt 0:00:30]} 31. Qd6 Ne8 {[%emt 0:00:30]} 32. Qe7 Nef6 {[%emt 0:00:30]} 33. Qd6 Ne8 {[%emt 0:00:30]} 1/2-1/2

[Event "2nd Namma Bengaluru Open-A 2025"]
[Site "Bengaluru"]
[Date "2025.04.11"]
[Round "3.11"]
[White "Ram Aravind L N"]
[Black "Kaustuv, Kundu"]
[Result "0-1"]
[Annotator "ChessBase"]
[ECO "B07"]
[WhiteElo "2245"]
[BlackElo "2407"]
[PlyCount "184"]
[EventDate "2025.04.10"]
[EventType "swiss"]
[EventCountry "IND"]
[SourceTitle "playchess.com"]
[Source "ChessBase"]
[SourceQuality "1"]
[TimeControl "5400+30"]

1. e4 {[%emt 0:00:13]} d6 {[%emt 0:01:42]} 2. d4 {[%emt 0:00:18]} Nf6 {[%emt 0:00:06]} 3. Nc3 {[%emt 0:00:18]} e5 {[%emt 0:00:08]} 4. Nge2 {[%emt 0:06:15]} Nbd7 {[%emt 0:04:10]} 5. f3 {[%emt 0:01:11]} Be7 {[%emt 0:01:20]} 6. Be3 {[%emt 0:01:42]} c6 {[%emt 0:00:35]} 7. a4 {[%emt 0:07:06]} O-O {[%emt 0:00:40]} 8. Ng3 {[%emt 0:13:19]} Re8 {[%emt 0:04:28]} 9. Be2 {[%emt 0:01:35]} d5 {[%emt 0:02:27]} 10. dxe5 {[%emt 0:14:25]} Nxe5 {[%emt 0:00:39]} 11. O-O {[%emt 0:01:17]} Bb4 {[%emt 0:00:41]} 12. Bd4 {[%emt 0:01:36]} Ng6 {[%emt 0:04:56]} 13. exd5 {[%emt 0:10:10]} Nxd5 {[%emt 0:01:39]} 14. Nxd5 {[%emt 0:03:34]} Qxd5 {[%emt 0:00:09]} 15. f4 {[%emt 0:03:16]} Nh4 {[%emt 0:13:59]} 16. Rf2 {[%emt 0:00:35]} Bf5 {[%emt 0:08:00]} 17. c4 {[%emt 0:11:57]} Qa5 {[%emt 0:15:34]} 18. Qb3 {[%emt 0:00:05]} Rad8 {[%emt 0:01:56]} 19. Bc3 {[%emt 0:00:09]} Bxc3 {[%emt 0:00:13]} 20. Qxc3 {[%emt 0:00:04]} Qxc3 {[%emt 0:03:19]} 21. bxc3 {[%emt 0:00:01]} Bc8 {[%emt 0:03:21]} 22. Rb1 {[%emt 0:01:32]} Re3 {[%emt 0:00:44]} 23. Rb3 {[%emt 0:02:29]} g6 {[%emt 0:02:27]} 24. Nf1 {[%emt 0:00:44]} Re7 {[%emt 0:00:09]} 25. Rb2 {[%emt 0:02:51]} f6 {[%emt 0:02:44]} 26. c5 {[%emt 0:01:53]} Kg7 {[%emt 0:01:16]} 27. g3 {[%emt 0:00:58]} Nf5 {[%emt 0:00:05]} 28. Bf3 {[%emt 0:00:05]} Rd3 {[%emt 0:01:06]} 29. Rbc2 {[%emt 0:01:39]} Re1 {[%emt 0:10:54]} 30. Kg2 {[%emt 0:00:37]} Ra1 {[%emt 0:01:01]} 31. Be4 {[%emt 0:04:40]} Rdd1 {[%emt 0:01:14]} 32. Rce2 {[%emt 0:00:35]} Kf8 {[%emt 0:03:29]} 33. Rd2 {[%emt 0:02:06]} Rxd2 {[%emt 0:06:03]} 34. Rxd2 {[%emt 0:00:11]} Ke7 {[%emt 0:00:05]} 35. Bxf5 {[%emt 0:04:29]} Bxf5 {[%emt 0:00:08]} 36. Ne3 {[%emt 0:00:02]} Be4+ {[%emt 0:00:56]} 37. Kf2 {[%emt 0:00:13]} Rxa4 {[%emt 0:00:32]} 38. Rb2 {[%emt 0:00:08]} Ke6 {[%emt 0:00:25]} 39. Rxb7 {[%emt 0:00:35]} Ra2+ {[%emt 0:00:06]} 40. Ke1 {[%emt 0:00:50]} h5 {[%emt 0:00:41]} 41. h3 {[%emt 0:02:31]} a5 {[%emt 0:00:10]} 42. Rb8 {[%emt 0:01:31]} f5 {[%emt 0:00:18]} 43. Rd8 {[%emt 0:00:26]} a4 {[%emt 0:02:37]} 44. Rd6+ {[%emt 0:00:29]} Kf7 {[%emt 0:01:18]} 45. Nc4 {[%emt 0:00:06]} a3 {[%emt 0:00:20]} 46. Rd7+ {[%emt 0:01:13]} Kg8 {[%emt 0:01:14]} 47. Rd8+ {[%emt 0:01:03]} Kg7 {[%emt 0:00:27]} 48. Rd7+ {[%emt 0:00:03]} Kf8 {[%emt 0:00:20]} 49. Ra7 {[%emt 0:01:17]} Ra1+ {[%emt 0:00:05]} 50. Kf2 {[%emt 0:00:32]} a2 {[%emt 0:00:05]} 51. Nd2 {[%emt 0:00:31]} Bd5 {[%emt 0:02:51]} 52. c4 {[%emt 0:00:01]} Bxc4 {[%emt 0:00:12]} 53. Nxc4 {[%emt 0:00:02]} Rh1 {[%emt 0:00:06]} 54. Ne5 {[%emt 0:00:06]} a1=Q {[%emt 0:00:16]} 55. Nxg6+ {[%emt 0:00:08]} Ke8 {[%emt 0:00:11]} 56. Rxa1 {[%emt 0:00:01]} Rxa1 {[%emt 0:00:10]} 57. Nh4 {[%emt 0:02:36]} Ra2+ {[%emt 0:01:19]} 58. Kf3 {[%emt 0:00:21]} Ra3+ {[%emt 0:00:27]} 59. Kf2 {[%emt 0:00:03]} Rc3 {[%emt 0:00:07]} 60. Nxf5 {[%emt 0:00:05]} Rxc5 {[%emt 0:00:06]} 61. Ne3 {[%emt 0:00:14]} Rc3 {[%emt 0:00:35]} 62. Kf3 {[%emt 0:00:05]} Kf7 {[%emt 0:00:15]} 63. Ke4 {[%emt 0:00:32]} Kf6 {[%emt 0:02:04]} 64. Kd4 {[%emt 0:01:37]} Ra3 {[%emt 0:00:16]} 65. Ke4 {[%emt 0:00:08]} c5 {[%emt 0:00:45]} 66. Nd5+ {[%emt 0:00:32]} Kf7 {[%emt 0:00:30]} 67. Ne3 {[%emt 0:00:21]} Rb3 {[%emt 0:00:52]} 68. Nf5 {[%emt 0:01:25]} Kf6 {[%emt 0:00:35]} 69. Ne3 {[%emt 0:00:08]} Kg6 {[%emt 0:01:18]} 70. h4 {[%emt 0:00:59]} Rb4+ {[%emt 0:00:35]} 71. Ke5 {[%emt 0:00:23]} Rd4 {[%emt 0:00:47]} 72. Nf5 {[%emt 0:00:46]} Rd1 {[%emt 0:00:26]} 73. Ne3 {[%emt 0:00:19]} Rd3 {[%emt 0:00:39]} 74. Ke4 {[%emt 0:00:30]} Rd4+ {[%emt 0:00:07]} 75. Ke5 {[%emt 0:00:03]} Rd8 {[%emt 0:00:09]} 76. f5+ {[%emt 0:01:05]} Kf7 {[%emt 0:00:05]} 77. Nc4 {[%emt 0:00:33]} Rd3 {[%emt 0:00:35]} 78. f6 {[%emt 0:00:29]} Rxg3 {[%emt 0:00:30]} 79. Nd6+ {[%emt 0:00:05]} Kg6 {[%emt 0:00:38]} 80. f7 {[%emt 0:00:56]} Rf3 {[%emt 0:00:19]} 81. Kd5 {[%emt 0:00:13]} Kg7 {[%emt 0:00:57]} 82. Kxc5 {[%emt 0:00:03]} Kf8 {[%emt 0:00:05]} 83. Kd5 {[%emt 0:00:07]} Rf4 {[%emt 0:00:06]} 84. Ke5 {[%emt 0:00:21]} Rxh4 {[%emt 0:00:05]} 85. Ne4 {[%emt 0:01:10]} Kxf7 {[%emt 0:01:30]} 86. Kf5 {[%emt 0:00:04]} Kg7 {[%emt 0:00:12]} 87. Nf6 {[%emt 0:01:27]} Rh1 {[%emt 0:00:25]} 88. Ne4 {[%emt 0:00:26]} Rg1 {[%emt 0:00:28]} 89. Kf4 {[%emt 0:00:20]} h4 {[%emt 0:00:12]} 90. Nf2 {[%emt 0:00:19]} Kg6 {[%emt 0:00:13]} 91. Kf3 {[%emt 0:00:55]} Kf5 {[%emt 0:00:06]} 92. Ne4 {[%emt 0:00:13]} h3 {[%emt 0:00:14]} 0-1

[Event "2nd Namma Bengaluru Open-A 2025"]
[Site "Bengaluru"]
[Date "2025.04.11"]
[Round "3.12"]
[White "Nithin Babu"]
[Black "Nguyen, Quoc Hy"]
[Result "1/2-1/2"]
[Annotator "ChessBase"]
[ECO "B92"]
[WhiteElo "2242"]
[BlackElo "2404"]
[PlyCount "76"]
[EventDate "2025.04.10"]
[EventType "swiss"]
[EventCountry "IND"]
[SourceTitle "playchess.com"]
[Source "ChessBase"]
[SourceQuality "1"]
[TimeControl "5400+30"]

1. e4 {[%emt 0:01:22]} c5 {[%emt 0:00:09]} 2. Nf3 {[%emt 0:00:32]} d6 {[%emt 0:00:18]} 3. d4 {[%emt 0:00:06]} cxd4 {[%emt 0:00:08]} 4. Nxd4 {[%emt 0:00:05]} Nf6 {[%emt 0:00:07]} 5. Nc3 {[%emt 0:00:04]} a6 {[%emt 0:00:09]} 6. Be2 {[%emt 0:00:08]} e5 {[%emt 0:00:19]} 7. Nb3 {[%emt 0:00:05]} Be7 {[%emt 0:00:08]} 8. Be3 {[%emt 0:00:06]} O-O {[%emt 0:00:48]} 9. g4 {[%emt 0:02:31]} Be6 {[%emt 0:00:31]} 10. g5 {[%emt 0:00:46]} Nfd7 {[%emt 0:01:35]} 11. h4 {[%emt 0:12:14]} b5 {[%emt 0:00:37]} 12. Nd5 {[%emt 0:05:53]} Nc5 {[%emt 0:00:52]} 13. Nxc5 {[%emt 0:01:55]} dxc5 {[%emt 0:00:05]} 14. Qd2 {[%emt 0:01:20]} Nc6 {[%emt 0:03:21]} 15. O-O-O {[%emt 0:01:56]} Nd4 {[%emt 0:00:34]} 16. c3 {[%emt 0:07:09]} Bxd5 {[%emt 0:00:28]} 17. exd5 {[%emt 0:00:20]} Qxd5 {[%emt 0:00:48]} 18. Kb1 {[%emt 0:02:34]} Qe6 {[%emt 0:00:21]} 19. Bd3 {[%emt 0:02:16]} Rad8 {[%emt 0:12:17]} 20. g6 {[%emt 0:09:47]} fxg6 {[%emt 0:21:03]} 21. cxd4 {[%emt 0:01:45]} exd4 {[%emt 0:00:28]} 22. Bg5 {[%emt 0:02:22]} Bxg5 {[%emt 0:00:17]} 23. hxg5 {[%emt 0:04:36]} c4 {[%emt 0:01:02]} 24. Rde1 {[%emt 0:03:00]} Qf7 {[%emt 0:00:16]} 25. Be4 {[%emt 0:02:40]} Qxf2 {[%emt 0:00:18]} 26. Re2 {[%emt 0:03:04]} Qf4 {[%emt 0:00:07]} 27. Qxf4 {[%emt 0:02:46]} Rxf4 {[%emt 0:00:27]} 28. Bb7 {[%emt 0:00:23]} d3 {[%emt 0:04:49]} 29. Reh2 {[%emt 0:05:57]} b4 {[%emt 0:00:09]} 30. Rxh7 {[%emt 0:06:02]} Kf7 {[%emt 0:00:27]} 31. Bxa6 {[%emt 0:04:34]} Rd6 {[%emt 0:00:32]} 32. Bb5 {[%emt 0:05:42]} Rd5 {[%emt 0:15:01]} 33. Ba4 {[%emt 0:02:31]} Ra5 {[%emt 0:00:50]} 34. R7h4 {[%emt 0:07:05]} Rxh4 {[%emt 0:00:21]} 35. Rxh4 {[%emt 0:00:02]} Rxa4 {[%emt 0:01:45]} 36. Rxc4 {[%emt 0:00:01]} d2 {[%emt 0:01:02]} 37. Kc2 {[%emt 0:01:44]} Rxa2 {[%emt 0:00:27]} 38. Rxb4 {[%emt 0:00:01]} Ra5 {[%emt 0:00:09]} 1/2-1/2